fUST/lending_fUST_20240120
["ID","MTS","AMOUNT","RATE_DAILY","PERIOD"]
[312219606,1705693840160,-302.106511,0.00030899,2]
[312219609,1705693840170,-806.436926,0.00030899,2]
[312219612,1705693840179,-806.436926,0.00030899,2]
[312219615,1705693840188,-193.7063891,0.00030899,2]
[312219618,1705693840197,-407.40474853,0.00030899,2]
[312219621,1705693840207,-500.0,0.00030899,4]
[312219623,1705693840217,-433.78102858,0.00030899,4]
[312219625,1705693840226,-273.0628047,0.00030899,4]
[312219627,1705693840235,-505.29629579,0.00030899,4]
[312219629,1705693840243,-265014.48981335,0.000309,2]
[312219631,1705693840253,-300.0,0.000309,15]
[312219633,1705693840263,-350.0,0.000309,2]
[312219635,1705693840272,-350.0,0.000309,2]
[312219637,1705693840282,-302.106511,0.000309,2]
[312219639,1705693840295,-302.106511,0.000309,2]
[312219642,1705693840304,-151.0,0.000309,2]
[312219644,1705693840313,-10000.0,0.000309,2]
[312219646,1705693840322,-10000.0,0.000309,2]
[312219648,1705693840331,-10000.0,0.000309,2]
[312219649,1705693840342,-10000.0,0.000309,2]
[312219651,1705693840351,-10000.0,0.000309,2]
[312219653,1705693840360,-10000.0,0.000309,2]
[312219655,1705693840370,-10000.0,0.000309,2]
[312219657,1705693840379,-10000.0,0.000309,2]
[312219659,1705693840388,-10000.0,0.000309,2]
[312219660,1705693840397,-806.436926,0.000309,2]
[312219662,1705693840407,-806.436926,0.000309,2]
[312219664,1705693840415,-806.436926,0.000309,2]
[312219666,1705693840424,-806.436926,0.000309,2]
[312219667,1705693840433,-806.436926,0.000309,2]
[312219669,1705693840442,-806.436926,0.000309,2]
[312219671,1705693840451,-806.436926,0.000309,2]
[312219673,1705693840460,-806.436916,0.000309,2]
[312219675,1705693840469,-500.0,0.00030958,2]
[312219677,1705693840478,-226.873549,0.00030959,2]
[312219679,1705693840487,-4320.19775833,0.0003099,4]
[312219681,1705693840496,-154.86062544,0.0003099,2]
[312219683,1705693840505,-252.13024853,0.0003099,4]
[312219685,1705693840514,-305.51246618,0.0003099,4]
[312219687,1705693840524,-328.64,0.00030995,2]
[312219689,1705693840533,-328.64,0.00030995,2]
[312219691,1705693840542,-328.64,0.00030995,2]
[312219693,1705693840551,-328.64,0.00030995,2]
[312219695,1705693840561,-328.64,0.00030995,2]
[312219697,1705693840570,-328.64,0.00030995,2]
[312219699,1705693840579,-328.64,0.00030995,2]
[312219701,1705693840587,-328.64,0.00030995,2]
[312219703,1705693840596,-328.64,0.00030995,2]
[312219705,1705693840605,-151.0,0.00030996,2]
[312219707,1705693840614,-10000.0,0.00030996,2]
[312219709,1705693840623,-10000.0,0.00030996,2]
[312219711,1705693840633,-10000.0,0.00030996,2]
[312219713,1705693840642,-10000.0,0.00030996,2]
[312219715,1705693840650,-10000.0,0.00030996,2]
[312219717,1705693840660,-10000.0,0.00030996,2]
[312219720,1705693840670,-10000.0,0.00030996,2]
[312219721,1705693840679,-10000.0,0.00030996,2]
[312219723,1705693840688,-10000.0,0.00030996,2]
[312219725,1705693840697,-738.92721496,0.00030996,4]
[312219727,1705693840706,-264.80820677,0.00030996,4]
[312219729,1705693840715,-5134.71110403,0.00030996,2]
[312219731,1705693840724,-350.0,0.00030997,2]
[312219733,1705693840734,-350.0,0.00030997,2]
[312219735,1705693840743,-302.106511,0.00030997,2]
[312219737,1705693840752,-302.106511,0.00030997,2]
[312219739,1705693840762,-902.59064044,0.00030997,4]
[312219741,1705693840772,-310.78488395,0.00030997,4]
[312219743,1705693840781,-1649.84127017,0.00030998,4]
[312219745,1705693840790,-174.94849142,0.00030998,4]
[312219747,1705693840799,-245.96363413,0.00030998,4]
[312219749,1705693840808,-929.97873154,0.00030998,7]
[312219751,1705693840817,-785.49820761,0.00030998,4]
[312219753,1705693840826,-1196.71363385,0.00030998,4]
[312219755,1705693840836,-849.41831623,0.00030998,4]
[312219757,1705693840845,-155.51794022,0.00030998,2]
[312219759,1705693840854,-155.08684864,0.00030998,4]
[312219761,1705693840863,-7934.8034329,0.00030998,4]
[312219763,1705693840872,-957.12041936,0.00030998,4]
[312219765,1705693840881,-327.18048,0.00030998,4]
[312219767,1705693840890,-350.0,0.00030998,2]
[312219769,1705693840899,-350.0,0.00030998,2]
[312219771,1705693840909,-302.106511,0.00030998,2]
[312219772,1705693840918,-302.106511,0.00030998,2]
[312219774,1705693840927,-8446.86972752,0.00030998,2]
[312219777,1705693840941,-1553.13027248,0.00030998,2]
[312219779,1705693840950,-196.90330285,0.00030998,2]
[312219781,1705693840961,-9803.09669715,0.00030998,2]
[312219783,1705693840970,-10000.0,0.00030998,2]
[312219785,1705693840979,-10000.0,0.00030998,2]
[312219787,1705693840988,-10000.0,0.00030998,2]
[312219788,1705693840997,-10000.0,0.00030998,2]
[312219790,1705693841006,-10000.0,0.00030998,2]
[312219792,1705693841015,-10000.0,0.00030998,2]
[312219794,1705693841024,-10000.0,0.00030998,2]
[312219796,1705693841033,-350.0,0.00030999,2]
[312219798,1705693841042,-350.0,0.00030999,2]
[312219800,1705693841051,-350.0,0.00030999,2]
[312219802,1705693841060,-350.0,0.00030999,2]
[312219804,1705693841069,-350.0,0.00030999,2]
[312219806,1705693841078,-350.0,0.00030999,2]
[312219808,1705693841088,-350.0,0.00030999,2]
[312219810,1705693841098,-350.0,0.00030999,2]
[312219811,1705693841107,-302.106511,0.00030999,2]
[312219813,1705693841116,-302.106511,0.00030999,2]
[312219815,1705693841125,-302.106511,0.00030999,2]
[312219817,1705693841135,-302.106511,0.00030999,2]
[312219819,1705693841144,-302.106511,0.00030999,2]
[312219821,1705693841154,-302.106511,0.00030999,2]
[312219823,1705693841162,-302.106511,0.00030999,2]
[312219825,1705693841171,-302.106511,0.00030999,2]
[312219827,1705693841181,-10000.0,0.00030999,2]
[312219829,1705693841191,-10000.0,0.00030999,2]
[312219831,1705693841200,-10000.0,0.00030999,2]
[312219833,1705693841209,-10000.0,0.00030999,2]
[312219834,1705693841218,-10000.0,0.00030999,2]
[312219836,1705693841228,-10000.0,0.00030999,2]
[312219838,1705693841237,-10000.0,0.00030999,2]
[312219840,1705693841246,-10000.0,0.00030999,2]
[312219842,1705693841256,-10000.0,0.00030999,2]
[312219844,1705693841265,-10000.0,0.00030999,2]
[312219846,1705693841275,-10000.0,0.00030999,2]
[312219848,1705693841285,-10000.0,0.00030999,2]
[312219850,1705693841297,-10000.0,0.00030999,2]
[312219852,1705693841306,-10000.0,0.00030999,2]
[312219854,1705693841315,-10000.0,0.00030999,2]
[312219863,1705693841395,-10000.0,0.00030999,2]
[312219865,1705693841404,-10000.0,0.00030999,2]
[312219866,1705693841413,-10000.0,0.00030999,2]
[312219868,1705693841422,-10000.0,0.00030999,2]
[312219870,1705693841431,-10000.0,0.00030999,2]
[312219872,1705693841440,-10000.0,0.00030999,2]
[312219874,1705693841449,-10000.0,0.00030999,2]
[312219876,1705693841458,-10000.0,0.00030999,2]
[312219878,1705693841468,-10000.0,0.00030999,2]
[312219880,1705693841477,-10000.0,0.00030999,2]
[312219882,1705693841486,-10000.0,0.00030999,2]
[312219884,1705693841495,-10000.0,0.00030999,2]
[312219886,1705693841504,-10000.0,0.00030999,2]
[312219888,1705693841514,-10000.0,0.00030999,2]
[312219890,1705693841524,-10000.0,0.00030999,2]
[312219892,1705693841533,-10000.0,0.00030999,2]
[312219894,1705693841543,-10000.0,0.00030999,2]
[312219895,1705693841553,-10000.0,0.00030999,2]
[312219897,1705693841562,-10000.0,0.00030999,2]
[312219899,1705693841571,-6161.210993,0.00030999,2]
[312219901,1705693841580,-322526.2912622,0.00031,2]
[312219903,1705693841589,-288.09544065,0.00031,2]
[312219905,1705693841600,-10736.03704325,0.00031,2]
[312219907,1705693841610,-350.0,0.00031,2]
[312219909,1705693841619,-350.0,0.00031,2]
[312219911,1705693841628,-350.0,0.00031,2]
[312219913,1705693841637,-350.0,0.00031,2]
[312219915,1705693841647,-350.0,0.00031,2]
[312219916,1705693841656,-350.0,0.00031,2]
[312219917,1705693841664,-302.106511,0.00031,2]
[312219918,1705693841674,-302.106511,0.00031,2]
[312219919,1705693841722,-302.106511,0.00031,2]
[312219920,1705693841731,-302.106515,0.00031,2]
[312219921,1705693841740,-10000.0,0.00031,2]
[312219922,1705693841749,-10000.0,0.00031,2]
[312219923,1705693841758,-10000.0,0.00031,2]
[312219924,1705693841767,-10000.0,0.00031,2]
[312219925,1705693841775,-10000.0,0.00031,2]
[312219926,1705693841785,-10000.0,0.00031,2]
[312219927,1705693841794,-10000.0,0.00031,2]
[312219928,1705693841803,-10000.0,0.00031,2]
[312219929,1705693841812,-10000.0,0.00031,2]
[312219930,1705693841821,-10000.0,0.00031,2]
[312219931,1705693841830,-10000.0,0.00031,2]
[312219932,1705693841838,-10000.0,0.00031,2]
[312219933,1705693841848,-927.045051,0.00031,3]
[312219934,1705693841856,-10000.0,0.00031,2]
[312219935,1705693841865,-10000.0,0.00031,2]
[312219936,1705693841874,-10000.0,0.00031,2]
[312219937,1705693841883,-10000.0,0.00031,2]
[312219939,1705693841893,-150.0,0.00031,3]
[312219941,1705693841902,-245.045733,0.00031,3]
[312219943,1705693841910,-245.045733,0.00031,3]
[312219945,1705693841919,-500.0,0.00031095,2]
[312219947,1705693841928,-280.0,0.00031163,15]
[312219949,1705693841938,-500.0,0.00031232,2]
[312219951,1705693841947,-167.141256,0.00031288,2]
[312219953,1705693841955,-500.0,0.00031369,2]
[312219955,1705693841964,-163.0,0.0003142,2]
[312219957,1705693841973,-150.0,0.0003142,2]
[312219959,1705693841983,-155.0,0.000315,2]
[312219961,1705693841994,-500.0,0.00031506,2]
[312219963,1705693842004,-500.0,0.00031643,2]
[312219965,1705693842014,-151.0,0.00031746,2]
[312219967,1705693842022,-500.0,0.0003178,2]
[312219969,1705693842031,-226.873549,0.00031781,2]
[312219971,1705693842040,-500.0,0.00031917,2]
[312219973,1705693842050,-319.08679849,0.00032,4]
[312219975,1705693842059,-21398.78683882,0.00032,10]
[312219977,1705693842068,-145353.66160436,0.00032,15]
[312219979,1705693842077,-3134.05888736,0.00032,2]
[312219981,1705693842086,-1000.0,0.00032,32]
[312219983,1705693842095,-155.568187,0.00032,2]
[312219985,1705693842104,-155.568187,0.00032,2]
[312219987,1705693842113,-155.568187,0.00032,2]
[312219989,1705693842122,-155.568187,0.00032,2]
[312219991,1705693842131,-500.0,0.00032,3]
[312219993,1705693842139,-200.0,0.00032,4]
[312219994,1705693842149,-620.07456284,0.0003201,2]
[312219996,1705693842157,-300.0,0.000324,16]
[312219998,1705693842166,-167.141256,0.00032438,2]
[312220000,1705693842175,-1273.60431467,0.00032458,2]
[312220002,1705693842190,-151.0,0.00032494,2]
[312220004,1705693842204,-2613.28648846,0.000325,15]
[312220007,1705693842217,-115924.11494888,0.000325,20]
[312220009,1705693842229,-155.568187,0.000325,2]
[312220011,1705693842239,-155.568187,0.000325,2]
[312220013,1705693842252,-226.873549,0.00032603,2]
[312220015,1705693842263,-250.0,0.00032876,7]
[312220018,1705693842277,-579.79710353,0.00032876,7]
[312220020,1705693842291,-500.0,0.00032876,7]
[312220022,1705693842305,-500.0,0.00032876,7]
[312220025,1705693842318,-446.26920227,0.00032876,7]
[312220027,1705693842329,-500.0,0.00032876,7]
[312220029,1705693842342,-354.7347732,0.00032876,7]
[312220031,1705693842355,-500.0,0.00032876,7]
[312220034,1705693842366,-500.0,0.00032876,7]
[312220036,1705693842379,-500.0,0.00032876,7]
[312220038,1705693842391,-254.61306432,0.00032876,7]
[312220040,1705693842404,-500.0,0.00032876,7]
[312220043,1705693842416,-171.4550039,0.00032877,2]
[312220045,1705693842427,-400.0,0.00032877,2]
[312220047,1705693842438,-38560.35367316,0.000329,3]
[312220049,1705693842452,-1117.0,0.00032969,30]
[312220051,1705693842464,-1117.0,0.00032979,30]
[312220054,1705693842477,-238.5,0.00032989,30]
[312220056,1705693842489,-1117.0,0.00032989,30]
[312220058,1705693842502,-162.90283469,0.00032999,10]
[312220060,1705693842514,-6762.26543772,0.00033,4]
[312220063,1705693842526,-82754.73121151,0.00033,7]
[312220066,1705693842544,-34744.80150006,0.00033,7]
[312220077,1705693842652,-476.48639649,0.00029222,3]
[312220080,1705693842667,-1070.92360351,0.00029222,3]
[312220082,1705693842679,-40802.0763965,0.00033,7]
[312220280,1705693844444,-345.12869652,0.00033,7]
[312225425,1705694836144,-238.23153817,0.0002659,2]
[312225426,1705694836165,-11.76846183,0.0002659,2]
[312225427,1705694839194,-452.47030798,0.0002659,2]
[312225428,1705694845127,-296.75355326,0.0002659,2]
[312225534,1705695039565,-238.23153817,0.00025269,2]
[312225535,1705695039575,-977.54301686,0.00025269,2]
[312225536,1705695039585,-154.86062544,0.00025269,2]
[312225537,1705695039594,-625.326817,0.0002527,2]
[312225538,1705695039604,-4719.78899734,0.00025587,2]
[312225539,1705695039613,-3963.07176261,0.00025588,2]
[312225540,1705695039623,-678.20873721,0.00025589,2]
[312225541,1705695039634,-15212.39198366,0.00025589,2]
[312225542,1705695039644,-27132.1551979,0.00025591,2]
[312225543,1705695039655,-3086.88,0.0002658,3]
[312225544,1705695039665,-2572.4,0.0002658,3]
[312225545,1705695039675,-4040.05030934,0.0002659,2]
[312225546,1705695039685,-238.93512243,0.0002659,2]
[312225547,1705695039695,-320.40143759,0.0002659,2]
[312225548,1705695039705,-46010.17665512,0.0002659,7]
[312225549,1705695039717,-156.66753163,0.0002659,2]
[312225550,1705695039726,-5380.88977739,0.0002659,2]
[312225551,1705695039736,-154.86062544,0.0002659,7]
[312225552,1705695039746,-547.67132072,0.0002659,2]
[312225553,1705695039756,-534.8672697,0.0002659,2]
[312225554,1705695039767,-290.34519337,0.0002659,2]
[312225555,1705695039777,-162.16655393,0.0002659,2]
[312225556,1705695039786,-618.89291521,0.0002659,2]
[312225557,1705695039796,-3216.76087832,0.0002659,2]
[312225558,1705695039805,-166.666666,0.00026598,2]
[312225559,1705695039814,-300.0,0.00026977,2]
[312225560,1705695039823,-2754.8279386,0.00027053,2]
[312225561,1705695039832,-200.0,0.00027924,15]
[312225562,1705695039841,-290.08228321,0.00028,2]
[312225563,1705695039850,-2359.30159524,0.00028373,5]
[312225564,1705695039859,-11772.26462134,0.00028749,2]
[312225565,1705695039868,-155.25095813,0.00029251,2]
[312225566,1705695039877,-154.90705177,0.00029252,2]
[312225567,1705695039886,-500.0,0.00029252,2]
[312225568,1705695039895,-177.3673866,0.00029252,2]
[312225569,1705695039904,-500.0,0.00029252,2]
[312225570,1705695039914,-297.5128015,0.00029252,2]
[312225572,1705695039923,-601.84522573,0.00029252,2]
[312225574,1705695039932,-48078.48543516,0.00029253,5]
[312225575,1705695039941,-5000.0,0.00029276,5]
[312225576,1705695039950,-507.1853477,0.0003,3]
[312225577,1705695039959,-150.0,0.0003,2]
[312225578,1705695039967,-199.0432224,0.00030078,2]
[312225579,1705695039977,-199.0432224,0.00030078,2]
[312225580,1705695039985,-199.0432224,0.00030078,2]
[312225581,1705695039994,-199.0432224,0.00030078,2]
[312225582,1705695040003,-199.0432224,0.00030078,2]
[312225583,1705695040013,-199.0432224,0.00030078,2]
[312225584,1705695040022,-199.0432224,0.00030078,2]
[312225585,1705695040031,-197.66015105,0.0003013,2]
[312225586,1705695040040,-500.0,0.00030136,2]
[312225587,1705695040049,-161.882638,0.00030137,2]
[312225588,1705695040059,-181.498839,0.00030137,2]
[312225589,1705695040068,-166.666666,0.00030223,2]
[312225590,1705695040077,-500.0,0.00030273,2]
[312225591,1705695040087,-500.0,0.0003041,2]
[312225592,1705695040097,-3994.29080351,0.000305,2]
[312225593,1705695040106,-509.1638357,0.00030547,2]
[312225595,1705695040116,-197.5351004,0.000306,2]
[312225596,1705695040125,-280.0,0.00030717,15]
[312225597,1705695040134,-459.40579009,0.00030871,4]
[312225598,1705695040143,-1000.0,0.00030899,14]
[312225599,1705695040152,-829.1810316,0.00030899,14]
[312225601,1705695040163,-199.0432224,0.000309,2]
[312225602,1705695040172,-784.08809311,0.000309,2]
[312225603,1705695040181,-181.498839,0.00030959,2]
[312225604,1705695040190,-447.0,0.0003097,30]
[312225605,1705695040200,-150.5,0.0003097,30]
[312225606,1705695040209,-447.0,0.0003098,30]
[312225607,1705695040219,-150.5,0.0003098,30]
[312225608,1705695040228,-447.0,0.0003099,30]
[312225609,1705695040237,-150.5,0.0003099,30]
[312225610,1705695040246,-244.13,0.00030999,2]
[312225611,1705695040255,-244.13,0.00030999,2]
[312225612,1705695040264,-244.13,0.00030999,2]
[312225613,1705695040273,-244.13,0.00030999,2]
[312225614,1705695040282,-244.13,0.00030999,2]
[312225615,1705695040292,-244.13,0.00030999,2]
[312225616,1705695040301,-244.13,0.00030999,2]
[312225617,1705695040310,-405.85797247,0.00030999,4]
[312225618,1705695040318,-854.53,0.00030999,2]
[312225619,1705695040328,-238.08177011,0.00031,2]
[312225620,1705695040337,-18809.89340862,0.00031,2]
[312225621,1705695040622,-226705.5531757,0.00031,2]
[312225622,1705695040634,-57742.48476231,0.00031,2]
[312225626,1705695041011,-1261.2858073,0.00025269,2]
[312225627,1705695041025,-340.95470309,0.00025269,2]
[312225628,1705695041034,-2143.66,0.00030989,3]
[312225629,1705695041043,-2614.82593786,0.00031,2]
[312225668,1705695042942,-172.58162467,0.0002549,2]
[312225669,1705695042952,-794.90062915,0.00031,2]
[312225670,1705695042964,-1018.49153012,0.00031,2]
[312225671,1705695042976,-615.42130348,0.00031,2]
[312225672,1705695042987,-6000.0,0.00031,2]
[312225685,1705695046359,-199.0432224,0.00030078,2]
[312225687,1705695046368,-517.64602465,0.00031,2]
[312225708,1705695993147,-154.86062544,0.00025183,2]
[312225709,1705695993167,-155.53726873,0.00025184,2]
[312225710,1705696030166,-167.915799,0.00025083,2]
[312225712,1705696045147,-1130.75735343,0.00025082,2]
[312225721,1705696168182,-977.54301686,0.00022572,2]
[312225722,1705696168203,-327.3065169,0.00022573,2]
[312225723,1705696168310,-76.41652558,0.00022574,2]
[312225724,1705696170153,-78.44409986,0.00022574,2]
[312225725,1705696170175,-2038.05199526,0.00024296,2]
[312225726,1705696170194,-597.47236,0.00024296,2]
[312225803,1705696233737,-154.86062544,0.00021866,2]
[312225805,1705696233746,-485.14113569,0.00023193,2]
[312225807,1705696233755,-2450.40041468,0.00024294,2]
[312225809,1705696233767,-2248.26396195,0.00024294,2]
[312225811,1705696233776,-2303.88386224,0.00024295,2]
[312225927,1705696238268,-1440.23343336,0.00024295,2]
[312225929,1705696238277,-4040.05030934,0.00024296,2]
[312225931,1705696238286,-1779.0889996,0.00024297,2]
[312225933,1705696238294,-785.1915763,0.00024621,2]
[312225935,1705696238303,-163.34436665,0.00025084,2]
[312225937,1705696238313,-312.663408,0.00025568,2]
[312225939,1705696238322,-815.6049539,0.00025568,2]
[312225941,1705696238331,-4662.0523513,0.00025568,2]
[312225943,1705696238339,-516.83298016,0.0002577,2]
[312225944,1705696238348,-327.0544431,0.0002577,2]
[312225946,1705696238357,-425.53656097,0.0002577,2]
[312225948,1705696238366,-1580.81290041,0.00025771,2]
[312225950,1705696238374,-41298.2000106,0.00025772,2]
[312225952,1705696238383,-250.0,0.00025829,2]
[312225954,1705696238392,-200.0,0.00026445,15]
[312225956,1705696238401,-2726.81,0.00026578,3]
[312225958,1705696238410,-11134.55024687,0.00026588,2]
[312225960,1705696238418,-497.46272166,0.0002659,2]
[312225962,1705696238427,-2623.03696008,0.0002659,2]
[312225964,1705696238436,-310.6610969,0.00026779,2]
[312225966,1705696238445,-290.08228321,0.00028,2]
[312225968,1705696238453,-156.87167711,0.00028575,2]
[312225970,1705696238463,-156.37700556,0.00028575,2]
[312225972,1705696238471,-309.70579883,0.00028576,2]
[312225974,1705696238480,-24900.0,0.00028577,2]
[312225976,1705696238490,-784.08809311,0.000289,2]
[312225978,1705696238498,-280.0,0.0002909,15]
[312225980,1705696238507,-1540.45738686,0.00029251,2]
[312226262,1705696241250,-2608.85005388,0.00029251,2]
[312226264,1705696241260,-5000.0,0.0002929,5]
[312226266,1705696241269,-3860.31040969,0.00029297,3]
[312226303,1705696241616,-7558.32988116,0.00029297,3]
[312226305,1705696241626,-2946.30968558,0.000293,4]
[312226307,1705696241635,-2118.2410997,0.00029308,4]
[312226309,1705696241644,-9114.76945328,0.0002945,4]
[312226311,1705696241654,-1018.6437214,0.0002979,2]
[312226313,1705696241663,-199.0432224,0.00030137,2]
[312226315,1705696241671,-169.398917,0.00030137,2]
[312226317,1705696241680,-161.882638,0.00030137,2]
[312226319,1705696241690,-3473.40049568,0.00030378,4]
[312226321,1705696241699,-152.27723828,0.00030859,2]
[312226323,1705696241708,-474.15717062,0.00030895,2]
[312226325,1705696241717,-500.0,0.00030895,2]
[312226326,1705696241727,-263.64553544,0.00030895,2]
[312226328,1705696241736,-77708.13121844,0.00030896,2]
[312226330,1705696241745,-39281.58873245,0.00030898,2]
[312226332,1705696241754,-169.398917,0.00030959,2]
[312226334,1705696241763,-150.5,0.0003097,30]
[312226336,1705696241772,-447.0,0.0003097,30]
[312226338,1705696241782,-150.5,0.0003098,30]
[312226341,1705696241792,-447.0,0.0003098,30]
[312226343,1705696241801,-150.5,0.0003099,30]
[312226344,1705696241810,-447.0,0.0003099,30]
[312226347,1705696241821,-3278.4054727,0.00030998,4]
[312226348,1705696241830,-636.76716654,0.00030998,4]
[312226351,1705696241839,-496.91772445,0.00030998,4]
[312226352,1705696241848,-1736.89858519,0.00030998,4]
[312226355,1705696241858,-36931.7299546,0.00030998,4]
[312226356,1705696241867,-155.14101314,0.00030998,4]
[312226358,1705696241876,-1815.68321298,0.00030998,2]
[312226360,1705696241884,-423.3648219,0.00030998,2]
[312226362,1705696241893,-246.90614662,0.00030998,4]
[312226365,1705696241903,-5483.36584487,0.00030998,4]
[312226366,1705696241912,-357.25188437,0.00030998,4]
[312226369,1705696241922,-198.20629725,0.00030998,4]
[312226370,1705696241931,-12167.23553282,0.00030998,4]
[312226372,1705696241940,-7996.6868672,0.00030998,4]
[312226374,1705696241949,-741.4287189,0.00030999,4]
[312226376,1705696241959,-207.1454238,0.00030999,4]
[312226378,1705696241968,-1932.66463311,0.00030999,3]
[312226380,1705696241977,-155.13782737,0.00030999,4]
[312226382,1705696241986,-2563.44,0.00030999,2]
[312226384,1705696241995,-405.85797247,0.00030999,4]
[312226386,1705696242004,-433.78102858,0.00030999,4]
[312226388,1705696242013,-500.0,0.00030999,4]
[312226390,1705696242023,-197.19,0.00030999,2]
[312226393,1705696242032,-273.0628047,0.00030999,4]
[312226395,1705696242041,-505.29629579,0.00030999,4]
[312226397,1705696242051,-407.40474853,0.00030999,2]
[312226400,1705696242073,-1000.0,0.00030999,14]
[312226402,1705696242083,-829.1810316,0.00030999,14]
[312226404,1705696242092,-69862.66171707,0.00031,2]
[312226850,1705696246414,-296.96180065,0.0002925,2]
[312226852,1705696246424,-2673.17,0.0003099,3]
[312226854,1705696246433,-1591.70126036,0.00031,2]
[312232760,1705697157128,-312.663408,0.00020846,2]
[312232761,1705697157150,-164.44494494,0.00021764,2]
[312232762,1705697157170,-565.12818549,0.00021837,2]
[312232767,1705697225104,-160.93382702,0.00019736,2]
[312232768,1705697225125,-522.7253954,0.00019737,2]
[312232769,1705697225146,-2462.03052594,0.00019999,2]
[312232770,1705697229114,-992.02859772,0.00019999,2]
[312232771,1705697231181,-167.915799,0.00019736,2]
[312232776,1705697351109,-154.86062544,0.00019731,2]
[312232777,1705697351131,-4698.66437663,0.00019731,2]
[312232778,1705697351151,-903.13044819,0.00019732,2]
[312232779,1705697351171,-199.14321435,0.00019732,2]
[312232780,1705697351191,-1740.08077845,0.00019733,2]
[312232781,1705697351216,-2834.78752031,0.00019733,2]
[312232782,1705697351235,-36946.17544842,0.00019733,2]
[312232783,1705697351257,-3484.00738958,0.00019734,2]
[312232784,1705697351276,-1847.48861005,0.00019735,2]
[312232785,1705697351295,-4040.05030934,0.00019736,2]
[312232786,1705697351400,-227.62690524,0.00019995,2]
[312232787,1705697351422,-1259.40069592,0.00019995,2]
[312232788,1705697351442,-3144.31740529,0.00019996,2]
[312232789,1705697351462,-20864.2178903,0.00019997,2]
[312232790,1705697351482,-1581.11940922,0.00019997,2]
[312232791,1705697351503,-8193.12070066,0.00019997,2]
[312232792,1705697351525,-310.38578329,0.00019997,2]
[312232793,1705697351545,-849.76694483,0.0002,2]
[312232794,1705697351564,-678.20873721,0.0002,2]
[312232795,1705697351590,-1197.20181474,0.0002,2]
[312232796,1705697351613,-10200.58035078,0.00021614,2]
[312232797,1705697351634,-172.49119979,0.00021735,2]
[312232798,1705697351653,-160.62471582,0.00021833,2]
[312232799,1705697351673,-155.0,0.00021836,2]
[312232800,1705697351693,-154.9690062,0.00021837,2]
[312232801,1705697351713,-154.86062544,0.00021839,2]
[312232802,1705697351733,-155.45721292,0.0002184,2]
[312232803,1705697351752,-843.09332408,0.00021844,2]
[312232804,1705697351771,-155.42159485,0.00021857,2]
[312232805,1705697351791,-237.79084334,0.00021866,2]
[312232806,1705697351811,-171.354994,0.00021918,2]
[312232807,1705697351833,-920.67668926,0.00022,2]
[312232808,1705697352109,-3024.4949135,0.00022,2]
[312232809,1705697356134,-171.354994,0.00022773,2]
[312232810,1705697356155,-200.0,0.00022929,7]
[312232811,1705697356175,-171.354994,0.00023627,2]
[312232818,1705697361207,-171.354994,0.00024482,2]
[312232819,1705697361227,-522.7253954,0.00024737,2]
[312232820,1705697371118,374.82129748,0.00019736,2]
[312232821,1705697371139,722.40322712,0.00019736,2]
[312232822,1705697371238,1871.65598457,0.00019736,2]
[312232823,1705697371258,1071.16980017,0.00019736,2]
[312232825,1705697387118,4024.56720835,0.00019736,2]
[312232826,1705697387140,15.48310099,0.00019736,2]
[312232827,1705697401822,1049.87682364,0.00019736,2]
[312232869,1705697432226,-1413.17163466,0.00019735,2]
[312232875,1705697432280,-439.565,0.00019735,2]
[312232932,1705697439647,-767.45911271,0.00019735,2]
[312232934,1705697439821,-13286.38099536,0.00019735,2]
[312232935,1705697439831,-3405.2157272,0.00019736,2]
[312232936,1705697439840,-4040.05030934,0.00019736,2]
[312232937,1705697439850,-1978.57935557,0.00025221,7]